fUST/lending_fUST_20250122
["ID","MTS","AMOUNT","RATE_DAILY","PERIOD"]
[349941252,1737525039292,-151.0,0.00022191,2]
[349941253,1737525039303,-151.0,0.00022191,2]
[349941254,1737525039314,-151.0,0.00022191,2]
[349941255,1737525039324,-151.0,0.00022191,2]
[349941256,1737525039334,-151.0,0.00022191,2]
[349941257,1737525039345,-151.0,0.00022191,2]
[349941258,1737525039356,-151.0,0.00022191,2]
[349941259,1737525039366,-151.0,0.00022191,2]
[349941260,1737525039377,-151.0,0.00022191,2]
[349941261,1737525039388,-151.0,0.00022191,2]
[349941262,1737525039396,-151.0,0.00022191,2]
[349941263,1737525039403,-151.0,0.00022191,2]
[349941264,1737525039411,-151.0,0.00022191,2]
[349941265,1737525039419,-169.64,0.00022191,2]
[349941266,1737525039428,-500.0,0.00022191,3]
[349941267,1737525039438,-500.0,0.00022191,3]
[349941268,1737525039448,-151.301957,0.00022191,7]
[349941269,1737525039458,-500.0,0.00022191,3]
[349941270,1737525039467,-151.589548,0.00022191,7]
[349941271,1737525039478,-500.0,0.00022191,3]
[349941272,1737525039487,-521.98,0.00022191,3]
[349941273,1737525039497,-500.0,0.00022191,3]
[349941274,1737525039507,-500.0,0.00022191,3]
[349941275,1737525039516,-500.0,0.00022191,3]
[349941276,1737525039527,-152.094104,0.00022191,7]
[349941277,1737525039539,-151.0,0.00022191,7]
[349941278,1737525039549,-612.83,0.00022191,3]
[349941279,1737525039559,-500.0,0.00022191,3]
[349941280,1737525039569,-500.0,0.00022191,3]
[349941282,1737525039579,-515.56,0.00022191,3]
[349941284,1737525039589,-151.715586,0.00022191,7]
[349941285,1737525039598,-503.48,0.00022191,3]
[349941286,1737525039608,-178.82724802,0.00022191,3]
[349941287,1737525039618,-151.0,0.00022191,7]
[349941288,1737525039627,-500.0,0.00022191,3]
[349941289,1737525039638,-500.0,0.00022191,3]
[349941290,1737525039660,-683.97,0.00022191,3]
[349941291,1737525039683,-500.0,0.00022191,3]
[349941292,1737525039705,-500.0,0.00022191,3]
[349941293,1737525039728,-500.0,0.00022191,3]
[349941294,1737525039752,-500.0,0.00022191,3]
[349941295,1737525039776,-500.0,0.00022191,3]
[349941296,1737525039799,-614.014214,0.00022191,3]
[349941297,1737525039816,-500.0,0.00022191,3]
[349941299,1737525039826,-784.22,0.00022191,3]
[349941301,1737525039835,-631.1952596,0.00022191,3]
[349941303,1737525039845,-500.0,0.00022191,3]
[349941305,1737525039854,-500.0,0.00022191,3]
[349941307,1737525039863,-500.0,0.00022191,3]
[349941309,1737525039873,-729.22,0.00022191,3]
[349941311,1737525039882,-500.0,0.00022191,3]
[349941313,1737525039891,-500.0,0.00022191,3]
[349941315,1737525039902,-983.69,0.00022191,3]
[349941317,1737525039910,-151.0,0.00022191,7]
[349941319,1737525039919,-500.0,0.00022191,3]
[349941321,1737525039929,-151.0,0.00022191,7]
[349941323,1737525039938,-500.0,0.00022191,3]
[349941324,1737525039948,-500.0,0.00022191,3]
[349941325,1737525039957,-151.0,0.00022191,7]
[349941326,1737525039966,-1029.38,0.00022191,3]
[349941327,1737525039976,-1004.1,0.00022191,3]
[349941328,1737525039986,-562.97,0.00022191,3]
[349941329,1737525039995,-500.0,0.00022191,3]
[349941330,1737525040004,-643.44,0.00022191,3]
[349941331,1737525040014,-218.21520446,0.00022191,3]
[349941332,1737525040023,-693.15,0.00022191,3]
[349941333,1737525040032,-500.0,0.00022191,3]
[349941334,1737525040042,-470.987842,0.00022191,7]
[349941335,1737525040051,-500.0,0.00022191,3]
[349941336,1737525040061,-470.987842,0.00022191,7]
[349941337,1737525040070,-500.0,0.00022191,3]
[349941338,1737525040080,-151.0,0.00022191,7]
[349941339,1737525040090,-617.91,0.00022191,3]
[349941340,1737525040099,-515.81,0.00022191,3]
[349941341,1737525040109,-572.61,0.00022191,3]
[349941342,1737525040118,-500.0,0.00022191,3]
[349941343,1737525040214,-500.0,0.00022191,3]
[349941344,1737525040224,-151.0,0.00022191,7]
[349941345,1737525040234,-151.0,0.00022191,7]
[349941346,1737525040244,-500.0,0.00022191,3]
[349941347,1737525040253,-515.10869037,0.00022191,3]
[349941348,1737525040263,-151.0,0.00022191,7]
[349941349,1737525040273,-500.0,0.00022191,3]
[349941350,1737525040283,-500.0,0.00022191,3]
[349941351,1737525040292,-500.0,0.00022191,3]
[349941352,1737525040301,-1057.4,0.00022191,3]
[349941353,1737525040311,-500.0,0.00022191,3]
[349941354,1737525040320,-1028.49,0.00022191,3]
[349941355,1737525040329,-500.0,0.00022191,3]
[349941356,1737525040339,-936.69,0.00022191,3]
[349941357,1737525040348,-262.471912,0.00022191,7]
[349941358,1737525040357,-151.0,0.00022191,7]
[349941359,1737525040366,-153.228563,0.00022191,7]
[349941360,1737525040376,-500.0,0.00022191,3]
[349941361,1737525040385,-151.0,0.00022191,7]
[349941362,1737525040395,-222.710606,0.00022191,7]
[349941363,1737525040404,-500.0,0.00022191,3]
[349941364,1737525040413,-222.710606,0.00022191,7]
[349941365,1737525040423,-500.0,0.00022191,3]
[349941366,1737525040432,-667.43,0.00022191,3]
[349941367,1737525040441,-151.0,0.00022191,7]
[349941368,1737525040451,-583.97,0.00022191,3]
[349941369,1737525040459,-500.0,0.00022191,3]
[349941370,1737525040469,-341.910277,0.00022191,7]
[349941371,1737525040478,-151.0,0.00022191,7]
[349941372,1737525040487,-341.910277,0.00022191,7]
[349941373,1737525040496,-695.07,0.00022191,3]
[349941374,1737525040505,-500.0,0.00022191,3]
[349941375,1737525040515,-151.0,0.00022191,7]
[349941376,1737525040524,-151.0,0.00022191,7]
[349941377,1737525040535,-152.5189,0.00022191,7]
[349941378,1737525040545,-830.54,0.00022191,3]
[349941379,1737525040554,-500.0,0.00022191,3]
[349941380,1737525040563,-152.5189,0.00022191,7]
[349941381,1737525040574,-500.0,0.00022191,3]
[349941382,1737525040583,-549.43,0.00022191,3]
[349941383,1737525040592,-986.66,0.00022191,3]
[349941384,1737525040602,-500.0,0.00022191,3]
[349941385,1737525040613,-500.0,0.00022191,3]
[349941386,1737525040622,-513.53164646,0.00022191,3]
[349941387,1737525040631,-33180.8876426,0.00022191,3]
[349941388,1737525040653,-468.04,0.00022191,3]
[349941389,1737525040672,-410.08739475,0.00021917,5]
[349941390,1737525040682,-2355.98215181,0.00022191,3]
[349941391,1737525040927,-500.0,0.00021917,3]
[349941392,1737525040937,-395.0,0.00021965,2]
[349941393,1737525040946,-500.0,0.00022054,3]
[349941394,1737525040955,-86.23020559,0.00022191,3]
[349941395,1737525040964,-1852.7,0.00022191,3]
[349941396,1737525040974,-500.0,0.00022191,3]
[349941397,1737525040983,-500.0,0.00022191,3]
[349941398,1737525040992,-5181.90904822,0.00022191,3]
[349941399,1737525041004,-3968.88095178,0.00022191,3]
[349941400,1737525041013,-1433.66,0.00022191,3]
[349941401,1737525041024,-151.0,0.00022191,7]
[349941402,1737525041033,-791.06603604,0.00022191,2]
[349941477,1737525405145,163.68681,0.00013973,2]
[349941535,1737526232407,-300.0,0.00020428,2]
[349941536,1737526232418,-22700.0452512,0.00020429,2]
[349941537,1737526232428,-203.135549,0.00020435,2]
[349941538,1737526232438,-173.316,0.00020976,2]
[349941539,1737526232448,-152.0,0.00021186,2]
[349941540,1737526232458,-1360.46485083,0.0002133,2]
[349941541,1737526232468,-3000.0,0.000214,2]
[349941542,1737526232478,-3000.0,0.0002141,2]
[349941543,1737526232488,-3000.0,0.0002142,2]
[349941544,1737526232498,-3000.0,0.0002143,2]
[349941545,1737526232508,-3000.0,0.0002144,2]
[349941552,1737526232658,-3000.0,0.0002145,2]
[349941553,1737526232670,-3000.0,0.0002146,2]
[349941554,1737526232679,-304.02,0.0002147,2]
[349941555,1737526232689,-3000.0,0.0002147,2]
[349941556,1737526232698,-3000.0,0.0002148,2]
[349941557,1737526232707,-3000.0,0.0002149,2]
[349941558,1737526232717,-3000.0,0.000215,2]
[349941559,1737526232726,-3000.0,0.0002151,2]
[349941560,1737526232735,-3000.0,0.0002152,2]
[349941561,1737526232744,-3000.0,0.0002153,2]
[349941562,1737526232755,-3000.0,0.0002154,2]
[349941563,1737526232764,-1687.35646041,0.0002155,2]
[349941564,1737526232901,-406.271099,0.0002155,2]
[349941590,1737526238274,-735.50365646,0.0002155,2]
[349941606,1737526243278,-170.86878413,0.0002155,2]
[349941607,1737526243288,-487.13122567,0.0002156,2]
[349941608,1737526243300,-2512.86877433,0.0002156,2]
[349941609,1737526243309,-3000.0,0.0002157,2]
[349941610,1737526243319,-3000.0,0.0002158,2]
[349941611,1737526243328,-3000.0,0.0002159,2]
[349941612,1737526243338,-3000.0,0.000216,2]
[349941613,1737526243347,-3000.0,0.0002161,2]
[349941614,1737526243357,-3000.0,0.0002162,2]
[349941615,1737526243367,-3000.0,0.0002163,2]
[349941616,1737526243377,-3000.0,0.0002164,2]
[349941617,1737526243387,-3000.0,0.0002165,2]
[349941618,1737526243396,-3000.0,0.0002166,2]
[349941619,1737526243406,-3000.0,0.0002167,2]
[349941620,1737526243415,-3000.0,0.0002168,2]
[349941621,1737526243425,-3000.0,0.0002169,2]
[349941622,1737526243435,-3000.0,0.000217,2]
[349941623,1737526243445,-2387.70353726,0.0002171,2]
[349941624,1737526243462,-612.29646274,0.0002171,2]
[349941625,1737526243472,-3000.0,0.0002172,2]
[349941626,1737526243481,-3000.0,0.0002173,2]
[349941627,1737526243491,-3000.0,0.0002174,2]
[349941628,1737526243500,-3000.0,0.0002175,2]
[349941629,1737526243510,-1360.46485081,0.00021751,2]
[349941630,1737526243519,-3000.0,0.0002176,2]
[349941631,1737526243529,-2182.39309158,0.00021764,2]
[349941643,1737526315862,163.710914,0.00013973,2]
[349941656,1737527164095,163.728265,0.00013973,2]
[349941676,1737527419638,5942.7,0.00015051,2]
[349941694,1737527432505,-300.0,0.00018999,2]
[349941696,1737527432514,-17939.61027767,0.00019,2]
[349941698,1737527432524,-25761.32665405,0.0002,4]
[349941712,1737527432651,-461.5809726,0.00020684,2]
[349941714,1737527432661,-420.0,0.00020709,2]
[349941716,1737527432670,-238.642933,0.0002077,2]
[349941718,1737527432680,-209.45677847,0.00020799,2]
[349941720,1737527432689,-291.438,0.0002108,2]
[349941722,1737527432699,-3003.82784783,0.000215,2]
[349941724,1737527432708,-817.60690842,0.00021764,2]
[349941726,1737527432718,-3329.841561,0.0002177,2]
[349941728,1737527432727,-1020.34863816,0.000218,2]
[349941730,1737527432737,-528.4,0.000219,2]
[349941732,1737527432746,-37441.607991,0.000219,3]
[349941734,1737527432756,-300.0,0.000219,9]
[349941736,1737527432766,-912.97889888,0.000219,3]
[349941738,1737527432775,-3889.83087093,0.0002191,2]
[349941740,1737527432784,-158.92,0.00021916,2]
[349941742,1737527432793,-500.0,0.00021916,2]
[349941744,1737527432803,-562.00408398,0.00021916,2]
[349941746,1737527432812,-236.83810556,0.00021916,2]
[349941748,1737527432822,-443.22813996,0.00021916,2]
[349941750,1737527432831,-500.0,0.00021916,2]
[349941752,1737527432840,-167.24960086,0.00021916,2]
[349941754,1737527432850,-500.0,0.00021916,2]
[349941756,1737527432859,-509.32002184,0.00021916,2]
[349941758,1737527432868,-500.0,0.00021916,2]
[349941760,1737527432877,-4907.14410386,0.00021917,5]
[349941762,1737527432887,-500.0,0.00021917,3]
[349941764,1737527432896,-501.03,0.00021917,3]
[349941766,1737527432905,-500.0,0.00021917,3]
[349941768,1737527432914,-500.0,0.00021917,3]
[349941770,1737527432923,-500.0,0.00021917,3]
[349941772,1737527432933,-500.0,0.00021917,3]
[349941774,1737527432943,-270.8637782,0.00021917,3]
[349941776,1737527432953,-500.0,0.00021917,3]
[349941778,1737527432963,-500.0,0.00021917,3]
[349941780,1737527432972,-152.059088,0.00021917,2]
[349941783,1737527432982,-500.0,0.00021917,3]
[349941785,1737527432994,-500.0,0.00021917,3]
[349941787,1737527433004,-1726.54,0.00021917,3]
[349941789,1737527433013,-151.0,0.00021917,2]
[349941791,1737527433023,-151.0,0.00021917,2]
[349941793,1737527433032,-151.0,0.00021917,2]
[349941795,1737527433042,-153.142334,0.00021917,2]
[349941797,1737527433054,-500.0,0.00021917,3]
[349941799,1737527433063,-409.77440181,0.00021917,3]
[349941801,1737527433073,-358.6084578,0.00021917,3]
[349941803,1737527433082,-153.725946,0.00021917,2]
[349941805,1737527433091,-151.699481,0.00021917,2]
[349941807,1737527433101,-500.0,0.00021917,3]
[349941809,1737527433111,-151.0,0.00021917,2]
[349941811,1737527433121,-151.0,0.00021917,2]
[349941813,1737527433131,-153.40097,0.00021917,2]
[349941815,1737527433140,-500.0,0.00021917,3]
[349941817,1737527433150,-500.0,0.00021917,3]
[349941819,1737527433159,-155.191327,0.00021917,2]
[349941821,1737527433169,-500.0,0.00021917,3]
[349941823,1737527433178,-500.0,0.00021917,3]
[349941825,1737527433188,-500.0,0.00021917,3]
[349941827,1737527433197,-500.0,0.00021917,3]
[349941829,1737527433207,-686.2,0.00021917,3]
[349941831,1737527433216,-598.48,0.00021917,3]
[349941833,1737527433227,-500.0,0.00021917,3]
[349941835,1737527433238,-500.0,0.00021917,3]
[349941837,1737527433248,-500.0,0.00021917,3]
[349941839,1737527433257,-500.0,0.00021917,3]
[349941841,1737527433267,-151.0,0.00021917,2]
[349941843,1737527433284,-500.0,0.00021917,3]
[349941845,1737527433302,-500.0,0.00021917,3]
[349941847,1737527433318,-500.0,0.00021917,3]
[349941850,1737527433329,-151.0,0.00021917,2]
[349941851,1737527433341,-151.0,0.00021917,2]
[349941854,1737527433351,-878.58,0.00021917,3]
[349941856,1737527433361,-500.0,0.00021917,3]
[349941858,1737527433372,-500.0,0.00021917,3]
[349941860,1737527433385,-860.73,0.00021917,3]
[349941862,1737527433399,-151.0,0.00021917,2]
[349941864,1737527433409,-500.0,0.00021917,3]
[349941866,1737527433418,-151.0,0.00021917,2]
[349941868,1737527433428,-151.0,0.00021917,2]
[349941870,1737527433437,-151.0,0.00021917,2]
[349941872,1737527433447,-916.47,0.00021917,3]
[349941874,1737527433457,-629.15804345,0.00021917,3]
[349941876,1737527433466,-500.0,0.00021917,3]
[349941878,1737527433476,-150.19175181,0.00021917,3]
[349941880,1737527433486,-151.0,0.00021917,2]
[349941882,1737527433495,-500.0,0.00021917,3]
[349941884,1737527433505,-500.0,0.00021917,3]
[349941886,1737527433515,-540.67,0.00021917,3]
[349941888,1737527433525,-606.51,0.00021917,3]
[349941890,1737527433534,-563.01,0.00021917,3]
[349941892,1737527433544,-500.0,0.00021917,3]
[349941894,1737527433554,-500.0,0.00021917,3]
[349941896,1737527433564,-500.0,0.00021917,3]
[349941898,1737527433574,-500.0,0.00021917,3]
[349941900,1737527433584,-536.23,0.00021917,3]
[349941902,1737527433594,-500.0,0.00021917,3]
[349941904,1737527433604,-500.0,0.00021917,3]
[349941906,1737527433617,-500.0,0.00021917,3]
[349941907,1737527433626,-819.61,0.00021917,3]
[349941910,1737527433636,-500.0,0.00021917,3]
[349941912,1737527433646,-983.93,0.00021917,3]
[349941914,1737527433656,-151.0,0.00021917,2]
[349941916,1737527433666,-151.0,0.00021917,2]
[349941918,1737527433676,-500.0,0.00021917,3]
[349941920,1737527433686,-584.0,0.00021917,3]
[349941922,1737527433696,-151.0,0.00021917,2]
[349941924,1737527433706,-173.210875,0.00021917,2]
[349941926,1737527433716,-899.93,0.00021917,3]
[349941928,1737527433725,-151.0,0.00021917,2]
[349941930,1737527433735,-808.626765,0.00021917,2]
[349941932,1737527433745,-151.0,0.00021917,2]
[349941934,1737527433754,-808.626765,0.00021917,2]
[349941936,1737527433764,-500.0,0.00021917,3]
[349941938,1737527433774,-808.626765,0.00021917,2]
[349941940,1737527433785,-808.626765,0.00021917,2]
[349941942,1737527433795,-510.97,0.00021917,3]
[349941944,1737527433805,-500.0,0.00021917,3]
[349941946,1737527433815,-500.0,0.00021917,3]
[349941948,1737527433825,-129.72813283,0.00021917,2]
[349941951,1737527433839,-294.16092517,0.00021917,2]
[349941953,1737527433849,-423.889058,0.00021917,2]
[349941954,1737527433859,-500.0,0.00021917,3]
[349941957,1737527433869,-423.889058,0.00021917,2]
[349941958,1737527433879,-151.0,0.00021917,2]
[349941961,1737527433888,-423.889058,0.00021917,2]
[349941963,1737527433898,-151.0,0.00021917,2]
[349941965,1737527433909,-159.939649,0.00021917,2]
[349941967,1737527433919,-500.0,0.00021917,3]
[349941969,1737527433928,-168.893907,0.00021917,2]
[349941970,1737527433938,-500.0,0.00021917,3]
[349941973,1737527433948,-500.0,0.00021917,3]
[349941975,1737527433958,-708.19,0.00021917,3]
[349941977,1737527433967,-219.635464,0.00021917,2]
[349941979,1737527433978,-8388.89,0.00021917,3]
[349941981,1737527433988,-2100.17,0.00021917,3]
[349941983,1737527433997,-320.93628491,0.00021917,3]
[349941985,1737527434007,-500.0,0.00021917,3]
[349941987,1737527434016,-151.0,0.00021917,2]
[349941989,1737527434026,-151.0,0.00021917,2]
[349941991,1737527434036,-500.0,0.00021917,3]
[349941993,1737527434045,-1975.24,0.00021917,3]
[349941995,1737527434055,-500.0,0.00021917,3]
[349941996,1737527434064,-2040.6,0.00021917,3]
[349941999,1737527434074,-200.439546,0.00021917,2]
[349942000,1737527434083,-200.439546,0.00021917,2]
[349942002,1737527434093,-500.0,0.00021917,3]
[349942004,1737527434102,-151.0,0.00021917,2]
[349942006,1737527434112,-674.6,0.00021917,3]
[349942008,1737527434121,-151.0,0.00021917,2]
[349942011,1737527434131,-500.0,0.00021917,3]
[349942012,1737527434140,-200.439546,0.00021917,2]
[349942014,1737527434150,-200.439546,0.00021917,2]
[349942017,1737527434159,-500.0,0.00021917,3]
[349942019,1737527434169,-500.0,0.00021917,3]
[349942021,1737527434179,-500.0,0.00021917,3]
[349942023,1737527434189,-151.0,0.00021917,2]
[349942024,1737527434199,-1401.78,0.00021917,2]
[349942027,1737527434208,-608.19,0.00021917,3]
[349942028,1737527434219,-500.0,0.00021917,3]
[349942030,1737527434230,-500.0,0.00021917,3]
[349942032,1737527434240,-863.33,0.00021917,3]
[349942034,1737527434249,-500.0,0.00021917,3]
[349942036,1737527434258,-726.72,0.00021917,3]
[349942038,1737527434268,-500.0,0.00021917,3]
[349942040,1737527434277,-500.0,0.00021917,3]
[349942042,1737527434288,-175.393229,0.00021917,2]
[349942044,1737527434300,-500.0,0.00021917,3]
[349942046,1737527434309,-1698.31,0.00021917,3]
[349942048,1737527434319,-500.0,0.00021917,3]
[349942050,1737527434329,-500.0,0.00021917,3]
[349942052,1737527434338,-500.0,0.00021917,3]
[349942055,1737527434348,-748.79,0.00021917,3]
[349942057,1737527434358,-500.0,0.00021917,3]
[349942059,1737527434368,-30355.90805766,0.00021917,3]
[349942063,1737527434402,-1920.47688348,0.00021917,3]
[349942066,1737527434415,-1322.68505886,0.00021917,3]
[349942068,1737527434425,-638.06,0.00021917,3]
[349942070,1737527434435,-1275.28,0.00021917,3]
[349942072,1737527434444,-151.0,0.00021917,2]
[349942074,1737527434454,-151.0,0.00021917,2]
[349942075,1737527434464,-1432.9,0.00021917,3]
[349942077,1737527434474,-3164.73245122,0.00021917,3]
[349942408,1737527438378,-723.03812929,0.00021917,5]
[349942409,1737527438388,-5606.19754878,0.00021917,3]
[349942410,1737527438398,-3002.63,0.00021917,3]
[349942411,1737527438407,-2175.28,0.00021917,3]
[349942412,1737527438417,-500.0,0.00021917,3]
[349942413,1737527438426,-500.0,0.00021917,3]
[349942414,1737527438437,-500.0,0.00021917,3]
[349942415,1737527438446,-307.719249,0.00021917,2]
[349942416,1737527438456,-307.719249,0.00021917,2]
[349942417,1737527438465,-769.08,0.00021917,3]
[349942418,1737527438475,-500.0,0.00021917,3]
[349942419,1737527438485,-307.719249,0.00021917,2]
[349942420,1737527438495,-307.719249,0.00021917,2]
[349942421,1737527438505,-151.0,0.00021917,2]
[349942422,1737527438515,-500.0,0.00021917,3]
[349942423,1737527438525,-151.0,0.00021917,2]
[349942424,1737527438535,-500.0,0.00021917,3]
[349942425,1737527438544,-500.0,0.00021917,3]
[349942426,1737527438554,-722.61,0.00021917,3]
[349942427,1737527438564,-2321.56,0.00021917,3]
[349942428,1737527438573,-500.0,0.00021917,3]
[349942429,1737527438583,-177.002188,0.00021917,2]
[349942430,1737527438592,-177.002188,0.00021917,2]
[349942431,1737527438602,-1435.11,0.00021917,3]
[349942432,1737527438612,-500.0,0.00021917,3]
[349942433,1737527438621,-177.002188,0.00021917,2]
[349942434,1737527438631,-177.002188,0.00021917,2]
[349942435,1737527438640,-678.84,0.00021917,3]
[349942436,1737527438650,-151.0,0.00021917,2]
[349942437,1737527438660,-151.0,0.00021917,2]
[349942438,1737527438670,-151.0,0.00021917,2]
[349942439,1737527438679,-500.0,0.00021917,3]
[349942440,1737527438689,-500.0,0.00021917,3]
[349942441,1737527438698,-500.0,0.00021917,3]
[349942442,1737527438707,-151.0,0.00021917,2]
[349942443,1737527438717,-551.60116814,0.00021917,3]
[349942444,1737527438727,-500.0,0.00021917,3]
[349942445,1737527438736,-500.0,0.00021917,3]
[349942446,1737527438746,-654.31,0.00021917,3]
[349942447,1737527438756,-500.0,0.00021917,3]
[349942448,1737527438766,-500.0,0.00021917,3]
[349942449,1737527438775,-560.24,0.00021917,3]
[349942450,1737527438785,-500.0,0.00021917,3]
[349942451,1737527438795,-500.0,0.00021917,3]
[349942452,1737527438806,-520.8335783,0.00021917,3]
[349942453,1737527438815,-500.0,0.00021917,3]
[349942454,1737527438826,-240.744306,0.00021917,2]
[349942455,1737527438836,-240.744306,0.00021917,2]
[349942456,1737527438846,-714.739958,0.00021917,2]
[349942457,1737527438855,-714.739958,0.00021917,2]
[349942458,1737527438865,-714.739958,0.00021917,2]
[349942459,1737527438874,-240.744306,0.00021917,2]
[349942460,1737527438884,-714.739958,0.00021917,2]
[349942461,1737527438893,-240.744306,0.00021917,2]
[349942462,1737527438903,-151.0,0.00021917,2]
[349942463,1737527438912,-1253.33,0.00021917,3]
[349942464,1737527438922,-151.0,0.00021917,2]
[349942465,1737527438931,-3061.19,0.00021917,3]
[349942466,1737527438941,-500.0,0.00021917,3]
[349942467,1737527438951,-151.0,0.00021917,2]
[349942468,1737527438960,-151.0,0.00021917,2]
[349942469,1737527438969,-151.0,0.00021917,2]
[349942470,1737527438979,-203.105636,0.00021917,2]
[349942471,1737527438988,-1169.56,0.00021917,3]
[349942472,1737527438998,-6364.83,0.00021917,3]
[349942473,1737527439008,-2606.68,0.00021917,3]
[349942474,1737527439017,-876.74,0.00021917,3]
[349942475,1737527439026,-500.0,0.00021917,3]
[349942476,1737527439036,-606.55,0.00021917,3]
[349942477,1737527439045,-500.0,0.00021917,3]
[349942478,1737527439056,-773.39,0.00021917,3]
[349942479,1737527439065,-1158.23,0.00021917,3]
[349942480,1737527439074,-189.540328,0.00021917,2]
[349942481,1737527439084,-189.540328,0.00021917,2]
[349942482,1737527439093,-189.540328,0.00021917,2]
[349942483,1737527439104,-500.0,0.00021917,3]
[349942484,1737527439113,-189.540328,0.00021917,2]
[349942485,1737527439123,-189.540328,0.00021917,2]
[349942486,1737527439134,-189.540328,0.00021917,2]
[349942487,1737527439143,-1413.7,0.00021917,3]
[349942488,1737527439152,-907.37,0.00021917,3]
[349942489,1737527439162,-500.0,0.00021917,3]
[349942490,1737527439172,-682.66,0.00021917,3]
[349942491,1737527439181,-2864.02,0.00021917,3]
[349942492,1737527439190,-500.0,0.00021917,3]
[349942493,1737527439199,-500.0,0.00021917,3]
[349942495,1737527439209,-967.25,0.00021917,3]
[349942497,1737527439218,-151.0,0.00021917,2]
[349942499,1737527439230,-151.0,0.00021917,2]
[349942500,1737527439240,-151.0,0.00021917,2]
[349942501,1737527439249,-151.0,0.00021917,2]
[349942503,1737527439259,-152.566218,0.00021917,2]
[349942504,1737527439269,-500.0,0.00021917,3]
[349942505,1737527439279,-549.47,0.00021917,3]
[349942506,1737527439288,-500.0,0.00021917,3]
[349942507,1737527439298,-500.0,0.00021917,3]
[349942508,1737527439310,-500.0,0.00021917,3]
[349942509,1737527439320,-1562.7405134,0.00021969,2]
[349942510,1737527439330,-151.009,0.00021993,2]
[349942511,1737527439339,-151.0,0.00021993,7]
[349942512,1737527439348,-500.0,0.00021993,2]
[349942513,1737527439358,-500.0,0.00021993,2]
[349942514,1737527439367,-190.0,0.00022,2]
[349942515,1737527439376,-190.0,0.00022,15]
[349942516,1737527439386,-190.0,0.00022,13]
[349942517,1737527439395,-190.0,0.00022,14]
[349942518,1737527439405,-190.0,0.00022,12]
[349942519,1737527439414,-200.0,0.00022,14]
[349942520,1737527439423,-256.60446381,0.00022,2]
[349942521,1737527439437,-246.39553619,0.00022,2]
[349942522,1737527439447,-912.9788988,0.00022003,3]
[349942523,1737527439456,-2444.21783493,0.0002205,60]
[349942524,1737527439465,-151.0,0.0002205,7]
[349942525,1737527439475,-189.540328,0.0002205,7]
[349942526,1737527439485,-189.540328,0.0002205,7]
[349942527,1737527439495,-164.68678413,0.00022053,2]
[349942528,1737527439504,-500.0,0.00022053,2]
[349942529,1737527439513,-500.0,0.00022053,2]
[349942530,1737527439523,-372.50178145,0.00022053,2]
[349942531,1737527439532,-500.0,0.00022054,3]
[349942532,1737527439542,-649.9598658,0.00022054,3]
[349942533,1737527439551,-500.0,0.00022054,3]
[349942534,1737527439563,-500.0,0.00022054,3]
[349942535,1737527439572,-500.0,0.00022054,3]
[349942536,1737527439581,-500.0,0.00022054,3]